[Event "*** Titled Tuesday 3|2 Blitz"]
[Site "Chess.com"]
[Date "2017.05.02"]
[Round "1"]
[White "oskariot"]
[Black "Enzy63"]
[Result "1-0"]
[WhiteElo "2435"]
[BlackElo "2045"]
[TimeControl "180+2"]
[EndTime "13:10:48 PDT"]
[Termination "oskariot won by resignation"]

1. e4 {[%clk 0:03:00]} 1... e5 {[%clk 0:02:59.6]} 2. Nf3 {[%clk 0:03:00.6]} 2...
Nc6 {[%clk 0:03:00.6]} 3. Bb5 {[%clk 0:03:01.7]} 3... a6 {[%clk 0:03:01.5]} 4.
Ba4 {[%clk 0:03:03.1]} 4... Nf6 {[%clk 0:03:02.8]} 5. O-O {[%clk 0:03:04.5]}
5... Be7 {[%clk 0:03:04]} 6. Re1 {[%clk 0:03:05.9]} 6... b5 {[%clk 0:03:05]} 7.
Bb3 {[%clk 0:03:07.3]} 7... d6 {[%clk 0:03:06.5]} 8. c3 {[%clk 0:03:08.6]} 8...
O-O {[%clk 0:03:06.3]} 9. h3 {[%clk 0:03:10.1]} 9... Bb7 {[%clk 0:03:01.7]} 10.
d4 {[%clk 0:03:10.3]} 10... Nd7 {[%clk 0:03:02.1]} 11. d5 {[%clk 0:03:08.9]}
11... Na5 {[%clk 0:03:00.7]} 12. Bc2 {[%clk 0:03:09.4]} 12... c6 {[%clk
0:03:01.6]} 13. dxc6 {[%clk 0:03:10.3]} 13... Bxc6 {[%clk 0:03:02]} 14. Nbd2
{[%clk 0:03:11.1]} 14... Nf6 {[%clk 0:02:46]} 15. Nf1 {[%clk 0:03:09.7]} 15...
Qc7 {[%clk 0:02:40.7]} 16. Ng3 {[%clk 0:03:09.6]} 16... g6 {[%clk 0:02:41.8]}
17. Qe2 {[%clk 0:03:05.5]} 17... Rfe8 {[%clk 0:02:38.7]} 18. Bg5 {[%clk
0:03:01.5]} 18... d5 {[%clk 0:02:29.4]} 19. Rad1 {[%clk 0:02:44.4]} 19... Nc4
{[%clk 0:02:01]} 20. Bxf6 {[%clk 0:02:30.1]} 20... Bxf6 {[%clk 0:02:01]} 21.
exd5 {[%clk 0:02:30.5]} 21... Bb7 {[%clk 0:02:01.1]} 22. Ne4 {[%clk 0:02:27.4]}
22... Bg7 {[%clk 0:02:01.5]} 23. d6 {[%clk 0:02:24.5]} 23... Qc6 {[%clk
0:02:00.6]} 24. b3 {[%clk 0:02:09.6]} 24... Nb6 {[%clk 0:02:00.4]} 25. b4 {[%clk
0:01:40.8]} 25... a5 {[%clk 0:01:01.6]} 26. Nc5 {[%clk 0:00:35.7]} 26... axb4
{[%clk 0:01:02]} 27. Nxb7 {[%clk 0:00:36.2]} 27... Qxb7 {[%clk 0:00:54.1]} 28.
Be4 {[%clk 0:00:36.6]} 28... Qd7 {[%clk 0:00:41.4]} 29. Bxa8 {[%clk 0:00:36.3]}
29... Nxa8 {[%clk 0:00:42.5]} 30. cxb4 {[%clk 0:00:36.8]} 30... Nb6 {[%clk
0:00:41.9]} 31. Nd4 {[%clk 0:00:13.9]} 31... Nc4 {[%clk 0:00:31.1]} 32. Nb3
{[%clk 0:00:13.1]} 32... Nxd6 {[%clk 0:00:21.6]} 33. Nc5 {[%clk 0:00:13.6]}
33... Qc6 {[%clk 0:00:20.9]} 34. Qf3 {[%clk 0:00:13.9]} 34... e4 {[%clk
0:00:19.6]} 35. Qe3 {[%clk 0:00:12.5]} 35... h6 {[%clk 0:00:19.2]} 36. Qf4
{[%clk 0:00:11.3]} 36... h5 {[%clk 0:00:12.9]} 37. Qxd6 {[%clk 0:00:11.7]} 37...
Qxd6 {[%clk 0:00:13]} 38. Rxd6 {[%clk 0:00:12.8]} 38... Bc3 {[%clk 0:00:14.5]}
39. Re2 {[%clk 0:00:13.7]} 39... Bxb4 {[%clk 0:00:15.3]} 40. Nxe4 {[%clk
0:00:15.1]} 40... Bxd6 {[%clk 0:00:15.7]} 41. Nf6+ {[%clk 0:00:16.3]} 41... Kf8
{[%clk 0:00:14.2]} 42. Rxe8+ {[%clk 0:00:16.6]} 42... Kg7 {[%clk 0:00:13.5]} 43.
Ne4 {[%clk 0:00:18.5]} 43... Bf4 {[%clk 0:00:12.9]} 44. Rc8 {[%clk 0:00:18.8]}
44... h4 {[%clk 0:00:13.3]} 45. Rc5 {[%clk 0:00:18.4]} 45... f5 {[%clk
0:00:13.4]} 46. Nc3 {[%clk 0:00:17]} 46... Kf7 {[%clk 0:00:14]} 47. Rxb5 {[%clk
0:00:18]} 47... Ke6 {[%clk 0:00:15.4]} 48. a4 {[%clk 0:00:18.9]} 48... Be5
{[%clk 0:00:15.9]} 49. Nd1 {[%clk 0:00:19]} 49... Bd4 {[%clk 0:00:16.6]} 50. Nb2
{[%clk 0:00:19.8]} 50... g5 {[%clk 0:00:17.3]} 51. Nc4 {[%clk 0:00:21.2]} 51...
g4 {[%clk 0:00:18.3]} 52. hxg4 {[%clk 0:00:22]} 52... fxg4 {[%clk 0:00:20.2]}
53. a5 {[%clk 0:00:22.9]} 53... g3 {[%clk 0:00:21.3]} 54. a6 {[%clk 0:00:23.8]}
54... Bxf2+ {[%clk 0:00:18.9]} 55. Kh1 {[%clk 0:00:23.8]} 55... Kd7 {[%clk
0:00:16]} 56. a7 {[%clk 0:00:24]} 56... Bxa7 {[%clk 0:00:15.9]} 57. Rb7+ {[%clk
0:00:24.8]} 57... Kc6 {[%clk 0:00:17.4]} 58. Rxa7 {[%clk 0:00:26.7]} 58... Kc5
{[%clk 0:00:18.9]} 59. Rh7 {[%clk 0:00:28.6]} 59... Kxc4 {[%clk 0:00:19.9]} 60.
Rxh4+ {[%clk 0:00:30.1]} 60... Kd5 {[%clk 0:00:21]} 61. Rg4 {[%clk 0:00:31.2]}
61... Ke5 {[%clk 0:00:22]} 62. Rxg3 {[%clk 0:00:33.1]} 62... Kf4 {[%clk
0:00:23.5]} 63. Rh3 {[%clk 0:00:35]} 63... Kg4 {[%clk 0:00:24.6]} 64. Kh2 {[%clk
0:00:36.9]} 64... Kf4 {[%clk 0:00:25.3]} 65. g3+ {[%clk 0:00:38.8]} 65... Kg4
{[%clk 0:00:26.6]} 66. Rh4+ {[%clk 0:00:40.7]} 66... Kg5 {[%clk 0:00:27.8]} 67.
Rf4 {[%clk 0:00:42.6]} 67... Kh5 {[%clk 0:00:28.3]} 68. Kh3 {[%clk 0:00:44.5]}
68... Kg5 {[%clk 0:00:29.5]} 69. Ra4 {[%clk 0:00:46.4]} 1-0

[Event "*** Titled Tuesday 3|2 Blitz"]
[Site "Chess.com"]
[Date "2017.05.02"]
[Round "1"]
[White "DrVitman"]
[Black "GasconJR"]
[Result "1-0"]
[WhiteElo "2594"]
[BlackElo "2318"]
[TimeControl "180+2"]
[EndTime "13:11:24 PDT"]
[Termination "DrVitman won on time"]

1. d4 {[%clk 0:03:02]} 1... Nf6 {[%clk 0:03:00.3]} 2. c4 {[%clk 0:03:02.8]} 2...
e6 {[%clk 0:03:01.4]} 3. Nf3 {[%clk 0:03:04.2]} 3... d5 {[%clk 0:03:01.8]} 4.
Nc3 {[%clk 0:03:04.7]} 4... Be7 {[%clk 0:03:02.8]} 5. Bg5 {[%clk 0:03:04.2]}
5... O-O {[%clk 0:03:03.2]} 6. e3 {[%clk 0:03:05.1]} 6... h6 {[%clk 0:03:04.2]}
7. Bh4 {[%clk 0:03:05.2]} 7... Ne4 {[%clk 0:03:05.3]} 8. Bxe7 {[%clk 0:03:04]}
8... Qxe7 {[%clk 0:03:06.3]} 9. Qc2 {[%clk 0:03:04.5]} 9... Nxc3 {[%clk
0:03:03.9]} 10. Qxc3 {[%clk 0:03:05.3]} 10... c6 {[%clk 0:03:05]} 11. Bd3 {[%clk
0:02:57.1]} 11... dxc4 {[%clk 0:03:05.7]} 12. Bxc4 {[%clk 0:02:58]} 12... b6
{[%clk 0:03:04.8]} 13. O-O {[%clk 0:02:58.4]} 13... Bb7 {[%clk 0:03:05.7]} 14.
Rfd1 {[%clk 0:02:59.3]} 14... Nd7 {[%clk 0:03:06.7]} 15. h3 {[%clk 0:02:33.3]}
15... Rac8 {[%clk 0:02:53.5]} 16. Ne5 {[%clk 0:02:26.3]} 16... Nf6 {[%clk
0:02:26.6]} 17. b4 {[%clk 0:02:20.3]} 17... Nd5 {[%clk 0:02:18.9]} 18. Bxd5
{[%clk 0:02:17.6]} 18... cxd5 {[%clk 0:02:20.3]} 19. Qb2 {[%clk 0:02:17.2]}
19... Rc7 {[%clk 0:02:14.1]} 20. Rac1 {[%clk 0:02:09.7]} 20... Rfc8 {[%clk
0:02:13.7]} 21. b5 {[%clk 0:02:04.2]} 21... f6 {[%clk 0:02:07]} 22. Nd3 {[%clk
0:02:03.8]} 22... Rc4 {[%clk 0:02:07.6]} 23. a3 {[%clk 0:01:16.1]} 23... Qd7
{[%clk 0:01:58.5]} 24. Qb1 {[%clk 0:01:04.4]} 24... R8c7 {[%clk 0:01:42.7]} 25.
Nf4 {[%clk 0:00:40.5]} 25... Bc8 {[%clk 0:01:28.9]} 26. Rxc4 {[%clk 0:00:39.7]}
26... Rxc4 {[%clk 0:01:28.8]} 27. Ne2 {[%clk 0:00:37.3]} 27... Qc7 {[%clk
0:01:25.4]} 28. Rc1 {[%clk 0:00:37.6]} 28... Bd7 {[%clk 0:01:26.3]} 29. a4
{[%clk 0:00:37.5]} 29... Be8 {[%clk 0:01:19]} 30. Qb2 {[%clk 0:00:36.8]} 30...
Bg6 {[%clk 0:01:18.9]} 31. Rc3 {[%clk 0:00:36.8]} 31... Kf7 {[%clk 0:00:59.2]}
32. f3 {[%clk 0:00:37.3]} 32... Ke8 {[%clk 0:00:56]} 33. Kf2 {[%clk 0:00:38.2]}
33... Kd7 {[%clk 0:00:52.5]} 34. Qa3 {[%clk 0:00:39.2]} 34... Rxc3 {[%clk
0:00:49]} 35. Nxc3 {[%clk 0:00:39]} 35... Ke8 {[%clk 0:00:46.8]} 36. Qb4 {[%clk
0:00:38.5]} 36... Bd3 {[%clk 0:00:44]} 37. Ke1 {[%clk 0:00:39.2]} 37... Kf7
{[%clk 0:00:43.1]} 38. Kf2 {[%clk 0:00:40]} 38... Bc4 {[%clk 0:00:44]} 39. g3
{[%clk 0:00:39.7]} 39... g5 {[%clk 0:00:42.9]} 40. f4 {[%clk 0:00:37.3]} 40...
h5 {[%clk 0:00:42.5]} 41. Qa3 {[%clk 0:00:35]} 41... h4 {[%clk 0:00:41.3]} 42.
Qc1 {[%clk 0:00:32.5]} 42... Bd3 {[%clk 0:00:37.7]} 43. Qd2 {[%clk 0:00:31.5]}
43... hxg3+ {[%clk 0:00:36.4]} 44. Kxg3 {[%clk 0:00:32.2]} 44... Bf5 {[%clk
0:00:37]} 45. h4 {[%clk 0:00:30.9]} 45... gxh4+ {[%clk 0:00:36.6]} 46. Kxh4
{[%clk 0:00:32]} 46... Kf8 {[%clk 0:00:36.3]} 47. Kg3 {[%clk 0:00:33]} 47...
Qg7+ {[%clk 0:00:36.7]} 48. Kf2 {[%clk 0:00:34.3]} 48... Qh6 {[%clk 0:00:37]}
49. Ke1 {[%clk 0:00:32.9]} 49... Qh1+ {[%clk 0:00:37.4]} 50. Ke2 {[%clk
0:00:34]} 50... Bg4+ {[%clk 0:00:33.5]} 51. Kd3 {[%clk 0:00:34.7]} 51... Bf5+
{[%clk 0:00:34]} 52. Ke2 {[%clk 0:00:35.8]} 52... Qg2+ {[%clk 0:00:34.7]} 53.
Ke1 {[%clk 0:00:36.5]} 53... Qg1+ {[%clk 0:00:35]} 54. Ke2 {[%clk 0:00:37.7]}
54... Bh3 {[%clk 0:00:28.2]} 55. Kd3 {[%clk 0:00:33.9]} 55... Qg6+ {[%clk
0:00:25.6]} 56. Ke2 {[%clk 0:00:34.4]} 56... Qg2+ {[%clk 0:00:24.4]} 57. Kd1
{[%clk 0:00:35.2]} 57... Qf1+ {[%clk 0:00:23.4]} 58. Kc2 {[%clk 0:00:36.3]}
58... Bf5+ {[%clk 0:00:23.8]} 59. Kb2 {[%clk 0:00:36.8]} 59... Qc4 {[%clk
0:00:23.6]} 60. Qe1 {[%clk 0:00:34.8]} 60... Qd3 {[%clk 0:00:22.8]} 61. Qc1
{[%clk 0:00:34.6]} 61... Qc4 {[%clk 0:00:23.3]} 62. Qd2 {[%clk 0:00:31.6]} 62...
Qb4+ {[%clk 0:00:22]} 63. Ka2 {[%clk 0:00:32.6]} 63... Qc4+ {[%clk 0:00:20.4]}
64. Ka3 {[%clk 0:00:31.1]} 64... Ke7 {[%clk 0:00:11.4]} 65. Na2 {[%clk
0:00:30.2]} 65... Bc2 {[%clk 0:00:11.5]} 66. Qb4+ {[%clk 0:00:31.1]} 66... Qxb4+
{[%clk 0:00:09.3]} 67. Nxb4 {[%clk 0:00:33]} 67... Be4 {[%clk 0:00:06.1]} 68.
Nc6+ {[%clk 0:00:34.3]} 68... Kd6 {[%clk 0:00:07.4]} 69. Nxa7 {[%clk 0:00:35.7]}
69... e5 {[%clk 0:00:06.1]} 70. fxe5+ {[%clk 0:00:35]} 70... fxe5 {[%clk
0:00:07.5]} 71. dxe5+ {[%clk 0:00:29.6]} 71... Kxe5 {[%clk 0:00:07.7]} 72. Nc8
{[%clk 0:00:30.9]} 1-0

[Event "*** Titled Tuesday 3|2 Blitz"]
[Site "Chess.com"]
[Date "2017.05.02"]
[Round "1"]
[White "Bryakin_Mikhail"]
[Black "Vegan4future"]
[Result "1/2-1/2"]
[WhiteElo "2555"]
[BlackElo "2292"]
[TimeControl "180+2"]
[EndTime "13:12:07 PDT"]
[Termination "Game drawn - insufficient material"]

1. d4 {[%clk 0:02:49.2]} 1... Nf6 {[%clk 0:03:00.7]} 2. c4 {[%clk 0:02:50.3]}
2... g6 {[%clk 0:03:02.2]} 3. Nc3 {[%clk 0:02:50.4]} 3... Bg7 {[%clk 0:03:03.6]}
4. e4 {[%clk 0:02:51.6]} 4... d6 {[%clk 0:03:03.7]} 5. h3 {[%clk 0:02:51.7]}
5... O-O {[%clk 0:03:04.9]} 6. Be3 {[%clk 0:02:52.3]} 6... c5 {[%clk 0:02:46.7]}
7. Nf3 {[%clk 0:02:49.8]} 7... cxd4 {[%clk 0:02:40.1]} 8. Nxd4 {[%clk
0:02:50.3]} 8... Nc6 {[%clk 0:02:40.9]} 9. Be2 {[%clk 0:02:41.2]} 9... Nxd4
{[%clk 0:02:39.3]} 10. Bxd4 {[%clk 0:02:41.2]} 10... Be6 {[%clk 0:02:40.9]} 11.
O-O {[%clk 0:02:31.8]} 11... Rc8 {[%clk 0:02:41.7]} 12. b3 {[%clk 0:02:30.7]}
12... Qa5 {[%clk 0:02:39.6]} 13. Rc1 {[%clk 0:02:18.7]} 13... Nd7 {[%clk
0:02:40]} 14. Bxg7 {[%clk 0:02:12.8]} 14... Kxg7 {[%clk 0:02:41.9]} 15. Qd4+
{[%clk 0:02:13.5]} 15... Kg8 {[%clk 0:02:40.7]} 16. Rfd1 {[%clk 0:02:02.9]}
16... Qc5 {[%clk 0:02:39.9]} 17. Qd2 {[%clk 0:01:51.4]} 17... Nf6 {[%clk
0:02:32.6]} 18. Bf3 {[%clk 0:01:44.7]} 18... a6 {[%clk 0:02:26.6]} 19. Na4
{[%clk 0:01:43.9]} 19... Qa7 {[%clk 0:02:19]} 20. Nc3 {[%clk 0:01:34.9]} 20...
Qc5 {[%clk 0:02:14.8]} 21. Na4 {[%clk 0:01:33.3]} 21... Qa7 {[%clk 0:02:15.6]}
22. Nc3 {[%clk 0:01:34.1]} 22... Rfd8 {[%clk 0:02:08.9]} 23. Ne2 {[%clk
0:01:22.1]} 23... b5 {[%clk 0:02:07.3]} 24. cxb5 {[%clk 0:01:18.6]} 24... axb5
{[%clk 0:02:09.2]} 25. Nd4 {[%clk 0:01:18.5]} 25... Bd7 {[%clk 0:02:10.6]} 26.
h4 {[%clk 0:01:06.8]} 26... h5 {[%clk 0:02:09.8]} 27. g3 {[%clk 0:01:05.6]}
27... Rc5 {[%clk 0:02:01.7]} 28. Rxc5 {[%clk 0:01:02.8]} 28... Qxc5 {[%clk
0:02:00.2]} 29. Rc1 {[%clk 0:01:03.5]} 29... Qb6 {[%clk 0:01:58.4]} 30. Ne2
{[%clk 0:01:01.2]} 30... b4 {[%clk 0:01:53.2]} 31. Qd4 {[%clk 0:01:00.9]} 31...
Qxd4 {[%clk 0:01:51.5]} 32. Nxd4 {[%clk 0:01:02.8]} 32... Kf8 {[%clk 0:01:39.4]}
33. Rc2 {[%clk 0:01:02.7]} 33... e5 {[%clk 0:01:36.5]} 34. Nc6 {[%clk
0:01:02.2]} 34... Bxc6 {[%clk 0:01:37.9]} 35. Rxc6 {[%clk 0:01:04.1]} 35... Ke7
{[%clk 0:01:39.2]} 36. Rb6 {[%clk 0:01:02]} 36... Ra8 {[%clk 0:01:40.3]} 37.
Rxb4 {[%clk 0:01:01.8]} 37... Rxa2 {[%clk 0:01:41.3]} 38. Kf1 {[%clk 0:01:01.6]}
38... Nd7 {[%clk 0:01:40.4]} 39. Rb7 {[%clk 0:00:51.3]} 39... Ra1+ {[%clk
0:01:33.4]} 40. Ke2 {[%clk 0:00:50.5]} 40... Ke6 {[%clk 0:01:33.4]} 41. b4
{[%clk 0:00:49.1]} 41... Rb1 {[%clk 0:01:32.6]} 42. Bg2 {[%clk 0:00:41.8]} 42...
Rb2+ {[%clk 0:01:30.5]} 43. Ke1 {[%clk 0:00:40.7]} 43... Nc5 {[%clk 0:01:30.2]}
44. Bh3+ {[%clk 0:00:40.1]} 44... f5 {[%clk 0:01:28.8]} 45. exf5+ {[%clk
0:00:35.5]} 45... gxf5 {[%clk 0:01:30.7]} 46. Rh7 {[%clk 0:00:34.7]} 46... Nd3+
{[%clk 0:01:31.6]} 47. Kf1 {[%clk 0:00:36.1]} 47... Nxf2 {[%clk 0:01:26.9]} 48.
Rh6+ {[%clk 0:00:30.7]} 48... Kd5 {[%clk 0:01:24.8]} 49. Bxf5 {[%clk 0:00:31.9]}
49... e4 {[%clk 0:01:22.5]} 50. Rxh5 {[%clk 0:00:31.7]} 50... Kd4 {[%clk
0:01:23.2]} 51. Be6 {[%clk 0:00:23.1]} 51... Ke3 {[%clk 0:01:16.7]} 52. Rd5
{[%clk 0:00:20.2]} 52... Nd3 {[%clk 0:01:13.5]} 53. Rxd6 {[%clk 0:00:19.9]}
53... Rb1+ {[%clk 0:01:12.8]} 54. Kg2 {[%clk 0:00:21.1]} 54... Ne1+ {[%clk
0:01:14.4]} 55. Kh3 {[%clk 0:00:21.5]} 55... Nf3 {[%clk 0:01:14.4]} 56. Kg4
{[%clk 0:00:22.2]} 56... Rxb4 {[%clk 0:01:15.3]} 57. h5 {[%clk 0:00:22.7]} 57...
Kf2 {[%clk 0:01:15.6]} 58. Kf5 {[%clk 0:00:09.2]} 58... e3 {[%clk 0:01:16.5]}
59. Ra6 {[%clk 0:00:09.6]} 59... e2 {[%clk 0:01:13.7]} 60. Ra2 {[%clk
0:00:10.2]} 60... Nd4+ {[%clk 0:01:14]} 61. Kf6 {[%clk 0:00:09.8]} 61... Rb6
{[%clk 0:01:13.7]} 62. h6 {[%clk 0:00:08.1]} 62... Rxe6+ {[%clk 0:01:14.4]} 63.
Kg5 {[%clk 0:00:08.5]} 63... Nf3+ {[%clk 0:01:13.6]} 64. Kh5 {[%clk 0:00:09.4]}
64... Re5+ {[%clk 0:01:12.9]} 65. Kg6 {[%clk 0:00:10.1]} 65... Rg5+ {[%clk
0:01:14.4]} 66. Kf6 {[%clk 0:00:11.3]} 66... Rxg3 {[%clk 0:01:14.8]} 67. h7
{[%clk 0:00:10.8]} 67... Rh3 {[%clk 0:01:16.2]} 68. Kg7 {[%clk 0:00:11]} 68...
Rg3+ {[%clk 0:01:02.4]} 69. Kf6 {[%clk 0:00:10.6]} 69... Rh3 {[%clk 0:00:50.9]}
70. Kg7 {[%clk 0:00:10.2]} 70... Ng5 {[%clk 0:00:50.5]} 71. Rxe2+ {[%clk
0:00:04.7]} 71... Kxe2 {[%clk 0:00:47.2]} 72. h8=Q {[%clk 0:00:06.6]} 72... Ne6+
{[%clk 0:00:48]} 73. Kg8 {[%clk 0:00:07.2]} 73... Rg3+ {[%clk 0:00:49]} 74. Kf7
{[%clk 0:00:07.1]} 74... Ng5+ {[%clk 0:00:50.3]} 75. Ke7 {[%clk 0:00:07.1]}
75... Nf3 {[%clk 0:00:50.7]} 76. Qb2+ {[%clk 0:00:07.3]} 76... Ke3 {[%clk
0:00:52.1]} 77. Qb3+ {[%clk 0:00:08.2]} 77... Kf2 {[%clk 0:00:53.5]} 78. Qb2+
{[%clk 0:00:09.2]} 78... Kg1 {[%clk 0:00:54.9]} 79. Qb1+ {[%clk 0:00:10.6]}
79... Kg2 {[%clk 0:00:56.5]} 80. Qb2+ {[%clk 0:00:12]} 80... Kh3 {[%clk
0:00:58.1]} 81. Qh8+ {[%clk 0:00:12.8]} 81... Nh4 {[%clk 0:00:59.1]} 82. Qa1
{[%clk 0:00:13.5]} 82... Re3+ {[%clk 0:00:59.9]} 83. Kd6 {[%clk 0:00:14.5]}
83... Kg3 {[%clk 0:01:00.2]} 84. Kd7 {[%clk 0:00:15.7]} 84... Nf3 {[%clk
0:01:01.1]} 85. Kd8 {[%clk 0:00:14.5]} 85... Kf4 {[%clk 0:01:02.3]} 86. Kc8
{[%clk 0:00:15.6]} 86... Ke4 {[%clk 0:01:03]} 87. Kb8 {[%clk 0:00:16.5]} 87...
Nd4 {[%clk 0:01:04.2]} 88. Qh1+ {[%clk 0:00:16.6]} 88... Kd3 {[%clk 0:01:05.1]}
89. Qd1+ {[%clk 0:00:17.3]} 89... Kc4 {[%clk 0:01:05.9]} 90. Qc1+ {[%clk
0:00:17.8]} 90... Rc3 {[%clk 0:01:06.9]} 91. Qxc3+ {[%clk 0:00:18.5]} 91... Kxc3
{[%clk 0:01:08.8]} 1/2-1/2

[Event "*** Titled Tuesday 3|2 Blitz"]
[Site "Chess.com"]
[Date "2017.05.02"]
[Round "1"]
[White "Yaacovn"]
[Black "supertfc"]
[Result "1/2-1/2"]
[WhiteElo "2568"]
[BlackElo "2322"]
[TimeControl "180+2"]
[EndTime "13:12:21 PDT"]
[Termination "Game drawn - insufficient material"]

1. d4 {[%clk 0:03:01.5]} 1... Nf6 {[%clk 0:03:00.2]} 2. Nf3 {[%clk 0:03:02.2]}
2... e6 {[%clk 0:03:01.2]} 3. c4 {[%clk 0:03:02.2]} 3... d5 {[%clk 0:03:01]} 4.
Bg5 {[%clk 0:02:56.5]} 4... Be7 {[%clk 0:02:59.6]} 5. e3 {[%clk 0:02:56.5]} 5...
O-O {[%clk 0:02:58.3]} 6. Nc3 {[%clk 0:02:57.3]} 6... h6 {[%clk 0:02:57.2]} 7.
Bh4 {[%clk 0:02:57.6]} 7... Ne4 {[%clk 0:02:57.3]} 8. Bxe7 {[%clk 0:02:58]} 8...
Qxe7 {[%clk 0:02:58.2]} 9. Rc1 {[%clk 0:02:59]} 9... Nxc3 {[%clk 0:02:46]} 10.
Rxc3 {[%clk 0:02:59.5]} 10... c6 {[%clk 0:02:47.9]} 11. Qb3 {[%clk 0:02:58.6]}
11... Nd7 {[%clk 0:02:43.9]} 12. Qa3 {[%clk 0:02:59.2]} 12... Qxa3 {[%clk
0:02:29.5]} 13. Rxa3 {[%clk 0:02:59.5]} 13... Re8 {[%clk 0:02:29.8]} 14. Be2
{[%clk 0:02:46]} 14... dxc4 {[%clk 0:02:27.3]} 15. Bxc4 {[%clk 0:02:46.5]} 15...
e5 {[%clk 0:02:28.1]} 16. O-O {[%clk 0:02:47.3]} 16... exd4 {[%clk 0:02:27.6]}
17. Nxd4 {[%clk 0:02:47.8]} 17... Nb6 {[%clk 0:02:23.6]} 18. Be2 {[%clk
0:02:47.8]} 18... Bd7 {[%clk 0:02:17]} 19. Ra5 {[%clk 0:02:43.7]} 19... a6
{[%clk 0:02:15.9]} 20. Rc5 {[%clk 0:02:42.5]} 20... Rad8 {[%clk 0:02:14.9]} 21.
h3 {[%clk 0:02:41.7]} 21... Bc8 {[%clk 0:02:14.1]} 22. Bf3 {[%clk 0:02:42.2]}
22... Nd7 {[%clk 0:02:10.3]} 23. Rc2 {[%clk 0:02:39.4]} 23... Ne5 {[%clk
0:02:11.1]} 24. Be2 {[%clk 0:02:40.3]} 24... Ng6 {[%clk 0:01:54.1]} 25. Rfc1
{[%clk 0:02:36.2]} 25... Ne7 {[%clk 0:01:54]} 26. Bf3 {[%clk 0:02:19.4]} 26...
Nf5 {[%clk 0:01:54]} 27. Nb3 {[%clk 0:02:11.9]} 27... Nd6 {[%clk 0:01:41.2]} 28.
Nc5 {[%clk 0:02:10.7]} 28... g6 {[%clk 0:01:06.8]} 29. Rd2 {[%clk 0:02:10.8]}
29... Nb5 {[%clk 0:01:03.2]} 30. Rcd1 {[%clk 0:01:44.8]} 30... Rxd2 {[%clk
0:01:03.4]} 31. Rxd2 {[%clk 0:01:36.6]} 31... Nc7 {[%clk 0:01:05.3]} 32. b4
{[%clk 0:01:35.4]} 32... Ne6 {[%clk 0:01:05.4]} 33. Ne4 {[%clk 0:01:33.7]} 33...
Rd8 {[%clk 0:01:00.6]} 34. Rxd8+ {[%clk 0:01:27.1]} 34... Nxd8 {[%clk
0:01:02.5]} 35. Nd6 {[%clk 0:01:22.3]} 35... Bd7 {[%clk 0:00:59.9]} 36. a3
{[%clk 0:01:01.2]} 36... Kf8 {[%clk 0:00:59.4]} 37. Kf1 {[%clk 0:00:53.8]} 37...
Ke7 {[%clk 0:00:59.2]} 38. Ne4 {[%clk 0:00:53]} 38... Ne6 {[%clk 0:00:52]} 39.
Ke1 {[%clk 0:00:51.6]} 39... b6 {[%clk 0:00:43.7]} 40. Kd2 {[%clk 0:00:49.8]}
40... f5 {[%clk 0:00:40.8]} 41. Nc3 {[%clk 0:00:50.2]} 41... Kd6 {[%clk
0:00:40.1]} 42. h4 {[%clk 0:00:50]} 42... g5 {[%clk 0:00:37.7]} 43. hxg5 {[%clk
0:00:50.3]} 43... hxg5 {[%clk 0:00:39.6]} 44. g4 {[%clk 0:00:50.6]} 44... fxg4
{[%clk 0:00:35.8]} 45. Bxg4 {[%clk 0:00:51.1]} 45... Ke5 {[%clk 0:00:27]} 46.
Na4 {[%clk 0:00:50.3]} 46... b5 {[%clk 0:00:17.2]} 47. Bxe6 {[%clk 0:00:50.4]}
47... Bxe6 {[%clk 0:00:17.2]} 48. Nc5 {[%clk 0:00:51.1]} 48... Bc8 {[%clk
0:00:18.7]} 49. f3 {[%clk 0:00:51.5]} 49... Kd5 {[%clk 0:00:19.7]} 50. Kd3
{[%clk 0:00:52.1]} 50... a5 {[%clk 0:00:19.2]} 51. e4+ {[%clk 0:00:52.7]} 51...
Kd6 {[%clk 0:00:20.5]} 52. Kd4 {[%clk 0:00:53.5]} 52... axb4 {[%clk 0:00:21]}
53. axb4 {[%clk 0:00:54.1]} 53... g4 {[%clk 0:00:22.3]} 54. e5+ {[%clk
0:00:54.1]} 54... Kc7 {[%clk 0:00:22.5]} 55. f4 {[%clk 0:00:53.5]} 55... Bf5
{[%clk 0:00:18.4]} 56. Ke3 {[%clk 0:00:52.5]} 56... Kd8 {[%clk 0:00:17.2]} 57.
Kf2 {[%clk 0:00:51.3]} 57... Ke7 {[%clk 0:00:17.3]} 58. Kg3 {[%clk 0:00:52.1]}
58... Kf7 {[%clk 0:00:17.5]} 59. Kh4 {[%clk 0:00:52.7]} 59... Bc8 {[%clk
0:00:16.6]} 60. Ne4 {[%clk 0:00:51.6]} 60... Kg6 {[%clk 0:00:07.3]} 61. Nd6
{[%clk 0:00:48.9]} 61... Bd7 {[%clk 0:00:06.9]} 62. Kg3 {[%clk 0:00:48.3]} 62...
c5 {[%clk 0:00:06.7]} 63. bxc5 {[%clk 0:00:46.4]} 63... b4 {[%clk 0:00:08.6]}
64. Nc4 {[%clk 0:00:24.4]} 64... b3 {[%clk 0:00:09.7]} 65. Nb2 {[%clk
0:00:23.4]} 65... Bb5 {[%clk 0:00:10.4]} 66. Nd1 {[%clk 0:00:23.9]} 66... Kf5
{[%clk 0:00:09.8]} 67. Nb2 {[%clk 0:00:21.5]} 67... Ke6 {[%clk 0:00:09.7]} 68.
Kxg4 {[%clk 0:00:22.3]} 68... Kd5 {[%clk 0:00:11.1]} 69. Kf5 {[%clk 0:00:21.8]}
69... Kxc5 {[%clk 0:00:11]} 70. e6 {[%clk 0:00:22.1]} 70... Kd4 {[%clk
0:00:12.1]} 71. Kf6 {[%clk 0:00:21]} 71... Kc3 {[%clk 0:00:13.4]} 72. Nd1+
{[%clk 0:00:21.6]} 72... Kd2 {[%clk 0:00:14.7]} 73. Nb2 {[%clk 0:00:21.6]} 73...
Kc2 {[%clk 0:00:16.2]} 74. Ke5 {[%clk 0:00:22.5]} 74... Kxb2 {[%clk 0:00:16.9]}
75. f5 {[%clk 0:00:23.8]} 75... Kc3 {[%clk 0:00:12.7]} 76. f6 {[%clk 0:00:24.4]}
76... Be8 {[%clk 0:00:12.9]} 77. f7 {[%clk 0:00:26.3]} 77... Bxf7 {[%clk
0:00:14.2]} 78. exf7 {[%clk 0:00:27.5]} 78... b2 {[%clk 0:00:16.1]} 79. f8=Q
{[%clk 0:00:27.5]} 79... b1=Q {[%clk 0:00:16.4]} 80. Qc5+ {[%clk 0:00:28.6]}
80... Kb2 {[%clk 0:00:17.3]} 81. Qb4+ {[%clk 0:00:22.4]} 81... Ka1 {[%clk
0:00:18.2]} 82. Qa3+ {[%clk 0:00:21.2]} 82... Qa2 {[%clk 0:00:16.8]} 83. Qxa2+
{[%clk 0:00:21.8]} 83... Kxa2 {[%clk 0:00:17.7]} 1/2-1/2